fUST/lending_fUST_20240612
["ID","MTS","AMOUNT","RATE_DAILY","PERIOD"]
[329230763,1718191860308,-500.0,0.00017534,2]
[329230765,1718191860340,-1006.72,0.00017534,2]
[329230768,1718191860389,-12660.69,0.00017534,2]
[329230769,1718191860405,-3929.81,0.00017534,2]
[329230772,1718191860425,-4115.96,0.00017534,2]
[329230773,1718191860437,-500.0,0.00017534,2]
[329230774,1718191860450,-500.0,0.00017534,2]
[329230776,1718191860461,-500.0,0.00017534,2]
[329230778,1718191860476,-500.0,0.00017534,2]
[329230779,1718191860491,-500.0,0.00017534,2]
[329230781,1718191860505,-500.0,0.00017534,2]
[329230783,1718191860533,-500.0,0.00017534,2]
[329230785,1718191860565,-500.0,0.00017534,2]
[329230787,1718191860577,-500.0,0.00017534,2]
[329230789,1718191860589,-500.0,0.00017534,2]
[329230790,1718191860608,-500.0,0.00017534,2]
[329230793,1718191860635,-1180.1,0.00017597,2]
[329230795,1718191860672,-207.0,0.00017597,2]
[329230798,1718191860701,-1180.1,0.00017753,2]
[329230799,1718191860718,-207.0,0.00017753,2]
[329230801,1718191860734,-151.0,0.00017776,2]
[329230803,1718191860747,-854.79713606,0.00017777,2]
[329230805,1718191860761,-2035.38,0.00017806,2]
[329230807,1718191860781,-2035.38,0.00017807,2]
[329230808,1718191860793,-366.78342153,0.00017807,2]
[329230810,1718191860809,-500.0,0.00017808,2]
[329230811,1718191860823,-500.0,0.00017808,2]
[329230813,1718191860846,-500.0,0.00017808,2]
[329230815,1718191860860,-539.25,0.00017808,2]
[329230817,1718191860884,-500.0,0.00017808,2]
[329230819,1718191860903,-500.0,0.00017808,2]
[329230820,1718191860920,-505.69946728,0.00017808,2]
[329230823,1718191860937,-500.0,0.00017808,2]
[329230825,1718191860951,-500.0,0.00017808,2]
[329230826,1718191860965,-696.2,0.00017808,2]
[329230829,1718191860979,-500.0,0.00017808,2]
[329230830,1718191860993,-500.0,0.00017808,2]
[329230832,1718191861006,-500.0,0.00017808,2]
[329230834,1718191861016,-500.0,0.00017808,2]
[329230836,1718191861030,-500.0,0.00017808,2]
[329230838,1718191861043,-250.0,0.00017808,2]
[329230840,1718191861058,-500.0,0.00017808,4]
[329230841,1718191861070,-791.15,0.00017808,2]
[329230843,1718191861081,-500.0,0.00017808,2]
[329230845,1718191861094,-1958.31,0.00017808,2]
[329230847,1718191861105,-500.0,0.00017808,2]
[329230849,1718191861117,-7070.51,0.00017808,2]
[329230851,1718191861130,-500.0,0.00017808,2]
[329230853,1718191861141,-1734.34,0.00017808,2]
[329230855,1718191861158,-500.0,0.00017808,2]
[329230857,1718191861182,-500.0,0.00017808,2]
[329230859,1718191861198,-165.58453899,0.00017808,2]
[329230861,1718191861211,-805.35,0.00017808,2]
[329230863,1718191861223,-802.49,0.00017808,2]
[329230865,1718191861237,-500.0,0.00017808,2]
[329230867,1718191861249,-587.33,0.00017808,2]
[329230869,1718191861261,-150.55,0.00017808,2]
[329230870,1718191861273,-500.0,0.00017808,2]
[329230872,1718191861286,-4160.92,0.00017808,2]
[329230874,1718191861298,-500.0,0.00017808,2]
[329230876,1718191861310,-1287.22,0.00017808,2]
[329230878,1718191861321,-500.0,0.00017808,2]
[329230880,1718191861332,-18453.57,0.00017808,2]
[329230882,1718191861345,-532.86,0.00017808,2]
[329230884,1718191861387,-500.0,0.00017808,2]
[329230886,1718191861398,-1006.72,0.00017808,2]
[329230888,1718191861409,-256.94135,0.00017808,2]
[329230890,1718191861422,-12660.69,0.00017808,2]
[329230892,1718191861433,-256.94135,0.00017808,2]
[329230894,1718191861444,-619.685294,0.00017808,2]
[329230895,1718191861455,-619.685294,0.00017808,2]
[329230897,1718191861466,-3929.81,0.00017808,2]
[329230899,1718191861477,-4115.96,0.00017808,2]
[329230901,1718191861487,-262.675895,0.00017808,2]
[329230903,1718191861498,-500.0,0.00017808,2]
[329230905,1718191861511,-262.28007136,0.00017808,2]
[329230907,1718191861524,-151.0,0.00017808,2]
[329230909,1718191861537,-500.0,0.00017808,2]
[329230910,1718191861549,-235.546089,0.00017808,2]
[329230912,1718191861563,-235.546089,0.00017808,2]
[329230914,1718191861581,-514.81433297,0.00017808,2]
[329230916,1718191861604,-500.0,0.00017808,2]
[329230917,1718191861615,-180.40320867,0.00017808,2]
[329230919,1718191861627,-151.296538,0.00017808,2]
[329230921,1718191861640,-205.911629,0.00017808,2]
[329230923,1718191861651,-2061.650942,0.00017808,2]
[329230925,1718191861662,-205.911629,0.00017808,2]
[329230927,1718191861673,-318.1967511,0.00017808,2]
[329230929,1718191861685,-2061.650942,0.00017808,2]
[329230931,1718191861696,-151.0,0.00017808,2]
[329230933,1718191861708,-500.0,0.00017808,2]
[329230935,1718191861718,-500.0,0.00017808,2]
[329230937,1718191861728,-500.0,0.00017808,2]
[329230938,1718191861739,-10491.92816074,0.00017898,2]
[329230940,1718191861749,-205.3823407,0.00017924,2]
[329230942,1718191861759,-205.3823407,0.00017924,2]
[329230944,1718191861769,-205.3823407,0.00017924,2]
[329230946,1718191861781,-205.3823407,0.00017924,2]
[329230948,1718191861791,-2035.38,0.00017999,2]
[329230950,1718191861802,-2765.44251206,0.00018,2]
[329230952,1718191861813,-1355.61945113,0.00018,2]
[329230954,1718191861823,-876.82850055,0.00018,2]
[329230956,1718191861835,-476.69963654,0.00018,2]
[329230958,1718191861848,-155.01550155,0.00018,2]
[329230960,1718191861859,-155.02790502,0.00018,2]
[329230962,1718191861869,-2000.00000001,0.00018,2]
[329230963,1718191861880,-1036.68456979,0.00018,2]
[329230965,1718191861891,-204.17791001,0.00018,2]
[329230967,1718191861902,-1137.663072,0.00018,2]
[329230969,1718191861914,-1137.663072,0.00018,2]
[329230971,1718191861925,-3189.287515,0.00018,2]
[329230973,1718191861936,-3189.287515,0.00018,2]
[329230975,1718191861947,-151.0,0.00018,2]
[329230977,1718191861961,-151.0,0.00018,2]
[329230979,1718191861972,-364.500917,0.00018,2]
[329230981,1718191861983,-364.500917,0.00018,2]
[329230983,1718191861994,-2035.38,0.00018081,2]
[329230985,1718191862005,-500.0,0.00018082,2]
[329230986,1718191862016,-500.0,0.00018082,2]
[329230988,1718191862027,-500.0,0.00018082,2]
[329230990,1718191862037,-539.25,0.00018082,2]
[329230992,1718191862049,-500.0,0.00018082,2]
[329230994,1718191862060,-500.0,0.00018082,2]
[329230996,1718191862071,-500.0,0.00018082,2]
[329230998,1718191862082,-3677.7192,0.00018082,2]
[329231000,1718191862093,-500.0,0.00018082,2]
[329231002,1718191862104,-696.2,0.00018082,2]
[329231004,1718191862114,-500.0,0.00018082,2]
[329231006,1718191862125,-500.0,0.00018082,2]
[329231008,1718191862136,-500.0,0.00018082,2]
[329231010,1718191862149,-500.0,0.00018082,2]
[329231011,1718191862162,-250.0,0.00018082,2]
[329231013,1718191862173,-500.0,0.00018082,4]
[329231015,1718191862184,-791.15,0.00018082,2]
[329231017,1718191862196,-151.0,0.00018082,2]
[329231019,1718191862207,-500.0,0.00018082,2]
[329231021,1718191862218,-157.780409,0.00018082,2]
[329231023,1718191862233,-1958.31,0.00018082,2]
[329231025,1718191862243,-500.0,0.00018082,2]
[329231027,1718191862256,-7070.51,0.00018082,2]
[329231029,1718191862268,-500.0,0.00018082,2]
[329231030,1718191862280,-1701.47971,0.00018082,2]
[329231032,1718191862291,-1701.47971,0.00018082,2]
[329231034,1718191862303,-1734.34,0.00018082,2]
[329231036,1718191862314,-544.83215869,0.00018082,2]
[329231038,1718191862325,-547.24091,0.00018082,2]
[329231040,1718191862338,-500.0,0.00018082,2]
[329231042,1718191862350,-547.24091,0.00018082,2]
[329231044,1718191862387,-151.0,0.00018082,2]
[329231045,1718191862399,-173.945432,0.00018082,2]
[329231047,1718191862411,-319.4026,0.00018082,2]
[329231049,1718191862424,-805.35,0.00018082,2]
[329231051,1718191862436,-319.4026,0.00018082,2]
[329231053,1718191862450,-173.945432,0.00018082,2]
[329231055,1718191862461,-802.49,0.00018082,2]
[329231057,1718191862473,-599.88311515,0.00018082,2]
[329231059,1718191862486,-4973.356387,0.00018082,2]
[329231060,1718191862497,-587.33,0.00018082,2]
[329231062,1718191862508,-4973.356387,0.00018082,2]
[329231064,1718191862521,-1000.0,0.00018082,2]
[329231066,1718191862533,-1000.0,0.00018082,2]
[329231068,1718191862544,-1000.0,0.00018082,2]
[329231070,1718191862557,-1000.0,0.00018082,2]
[329231072,1718191862574,-1000.0,0.00018082,2]
[329231074,1718191862593,-1000.0,0.00018082,2]
[329231077,1718191862614,-1000.0,0.00018082,2]
[329231078,1718191862625,-1000.0,0.00018082,2]
[329231081,1718191862638,-1000.0,0.00018082,2]
[329231082,1718191862650,-1000.0,0.00018082,2]
[329231084,1718191862662,-1000.0,0.00018082,2]
[329231086,1718191862673,-1000.0,0.00018082,2]
[329231088,1718191862685,-1000.0,0.00018082,2]
[329231090,1718191862696,-1000.0,0.00018082,2]
[329231092,1718191862707,-1000.0,0.00018082,2]
[329231094,1718191862719,-1000.0,0.00018082,2]
[329231096,1718191862730,-221.989309,0.00018082,2]
[329231098,1718191862741,-500.0,0.00018082,2]
[329231100,1718191862752,-4160.92,0.00018082,2]
[329231102,1718191862762,-500.0,0.00018082,2]
[329231104,1718191862775,-1287.22,0.00018082,2]
[329231105,1718191862786,-155.01550155,0.00018082,2]
[329231107,1718191862796,-500.0,0.00018082,2]
[329231109,1718191862807,-18453.57,0.00018082,2]
[329231111,1718191862817,-532.86,0.00018082,2]
[329231113,1718191862829,-500.0,0.00018082,2]
[329231126,1718191862977,-1006.72,0.00018082,2]
[329231128,1718191863002,-256.94135,0.00018082,2]
[329231130,1718191863014,-12660.69,0.00018082,2]
[329231132,1718191863026,-256.94135,0.00018082,2]
[329231133,1718191863038,-619.685294,0.00018082,2]
[329231135,1718191863050,-619.685294,0.00018082,2]
[329231137,1718191863062,-3929.81,0.00018082,2]
[329231139,1718191863073,-4115.96,0.00018082,2]
[329231141,1718191863086,-310.85025111,0.00018082,2]
[329231143,1718191863100,-151.0,0.00018082,2]
[329231145,1718191863113,-500.0,0.00018082,2]
[329231148,1718191863134,-235.546089,0.00018082,2]
[329231150,1718191863149,-235.546089,0.00018082,2]
[329231152,1718191863164,-500.0,0.00018082,2]
[329231154,1718191863177,-151.0,0.00018082,2]
[329231156,1718191863192,-205.911629,0.00018082,2]
[329231158,1718191863207,-2061.650942,0.00018082,2]
[329231160,1718191863220,-205.911629,0.00018082,2]
[329231162,1718191863237,-2061.650942,0.00018082,2]
[329231164,1718191863252,-151.0,0.00018082,2]
[329231166,1718191863265,-500.0,0.00018082,2]
[329231168,1718191863279,-5281.92082876,0.00018184,2]
[329231170,1718191863295,-854.79713606,0.00018256,2]
[329231173,1718191863310,-1107.69609106,0.000183,2]
[329231175,1718191863325,-600.0,0.00018328,2]
[329231176,1718191863338,-2035.38,0.00018354,2]
[329231178,1718191863361,-552.89399516,0.00018355,2]
[329231180,1718191863399,-151.619067,0.00018355,2]
[329231182,1718191863414,-161.117024,0.00018355,2]
[329231184,1718191863426,-161.117024,0.00018355,2]
[329231186,1718191863440,-2116.775547,0.00018355,2]
[329231188,1718191863454,-2116.775547,0.00018355,2]
[329231190,1718191863466,-2035.38,0.00018355,2]
[329231192,1718191863479,-5406.10257369,0.00018356,13]
[329231194,1718191863491,-500.0,0.00018356,2]
[329231196,1718191863504,-500.0,0.00018356,2]
[329231197,1718191863518,-160.34758777,0.00018356,2]
[329231198,1718191863530,-539.25,0.00018356,2]
[329231199,1718191863542,-551.2095067,0.00018356,2]
[329231200,1718191863553,-500.0,0.00018356,2]
[329231201,1718191863564,-500.0,0.00018356,2]
[329231202,1718191863576,-500.0,0.00018356,2]
[329231203,1718191863586,-696.2,0.00018356,2]
[329231204,1718191863599,-500.0,0.00018356,2]
[329231205,1718191863610,-500.0,0.00018356,2]
[329231206,1718191863622,-234.66756291,0.00018356,2]
[329231207,1718191863632,-151.0,0.00018356,2]
[329231208,1718191863643,-500.0,0.00018356,2]
[329231209,1718191863653,-500.0,0.00018356,2]
[329231210,1718191863664,-303.523338,0.00018356,2]
[329231211,1718191863675,-151.0,0.00018356,2]
[329231212,1718191863686,-303.523338,0.00018356,2]
[329231213,1718191863696,-500.0,0.00018356,2]
[329231214,1718191863708,-250.0,0.00018356,2]
[329231215,1718191863720,-500.0,0.00018356,4]
[329231216,1718191863731,-791.15,0.00018356,2]
[329231217,1718191863742,-500.0,0.00018356,2]
[329231218,1718191863755,-1958.31,0.00018356,2]
[329231219,1718191863765,-500.0,0.00018356,2]
[329231220,1718191863777,-7070.51,0.00018356,2]
[329231221,1718191863788,-500.0,0.00018356,2]
[329231222,1718191863799,-1734.34,0.00018356,2]
[329231223,1718191863810,-547.24091,0.00018356,2]
[329231224,1718191863821,-500.0,0.00018356,2]
[329231225,1718191863832,-547.24091,0.00018356,2]
[329231226,1718191863846,-161.154819,0.00018356,2]
[329231228,1718191863859,-173.945432,0.00018356,2]
[329231230,1718191863872,-805.35,0.00018356,2]
[329231232,1718191863884,-173.945432,0.00018356,2]
[329231234,1718191863896,-802.49,0.00018356,2]
[329231237,1718191863910,-4973.356387,0.00018356,2]
[329231238,1718191863921,-587.33,0.00018356,2]
[329231240,1718191863933,-4973.356387,0.00018356,2]
[329231243,1718191863945,-1137.663072,0.00018356,2]
[329231245,1718191863958,-500.0,0.00018356,2]
[329231247,1718191863973,-1137.663072,0.00018356,2]
[329231249,1718191863984,-4160.92,0.00018356,2]
[329231251,1718191863997,-3189.287515,0.00018356,2]
[329231253,1718191864010,-3189.287515,0.00018356,2]
[329231255,1718191864023,-294.89911392,0.00018356,2]
[329231257,1718191864035,-1287.22,0.00018356,2]
[329231259,1718191864047,-500.0,0.00018356,2]
[329231261,1718191864059,-18453.57,0.00018356,2]
[329231263,1718191864070,-532.86,0.00018356,2]
[329231266,1718191864082,-151.0,0.00018356,2]
[329231268,1718191864095,-151.0,0.00018356,2]
[329231270,1718191864107,-500.0,0.00018356,2]
[329231272,1718191864118,-1006.72,0.00018356,2]
[329231274,1718191864129,-12660.69,0.00018356,2]
[329231276,1718191864142,-3929.81,0.00018356,2]
[329231278,1718191864158,-4115.96,0.00018356,2]
[329231280,1718191864169,-364.500917,0.00018356,2]
[329231282,1718191864181,-364.500917,0.00018356,2]
[329231284,1718191864193,-500.0,0.00018356,2]
[329231286,1718191864205,-241.67580559,0.00018356,2]
[329231288,1718191864216,-151.0,0.00018356,2]
[329231290,1718191864230,-500.0,0.00018356,2]
[329231292,1718191864241,-155.0,0.0001841,2]
[329231294,1718191864253,-162.54564181,0.00018413,3]
[329231296,1718191864265,-499.0,0.00018491,2]
[329231298,1718191864277,-606.91207968,0.000185,2]
[329231300,1718191864289,-600.0,0.00018519,2]
[329231302,1718191864302,-166.666666,0.00018575,2]
[329231304,1718191864315,-2035.38,0.00018597,2]
[329231306,1718191864327,-2035.38,0.00018597,2]
[329231308,1718191864339,-2035.38,0.00018597,2]
[329231310,1718191864371,-2035.38,0.00018597,2]
[329231312,1718191864393,-2035.38,0.00018597,2]
[329231315,1718191864405,-2035.38,0.00018597,2]
[329231317,1718191864418,-2035.45164255,0.00018597,2]
[329231319,1718191864429,-256.94135,0.00018597,2]
[329231321,1718191864441,-256.94135,0.00018597,2]
[329231323,1718191864452,-619.685294,0.00018597,2]
[329231324,1718191864464,-619.685294,0.00018597,2]
[329231326,1718191864475,-151.0,0.00018597,2]
[329231328,1718191864486,-235.546089,0.00018597,2]
[329231330,1718191864499,-235.546089,0.00018597,2]
[329231332,1718191864510,-205.911629,0.00018597,2]
[329231334,1718191864522,-2061.650942,0.00018597,2]
[329231336,1718191864534,-205.911629,0.00018597,2]
[329231338,1718191864546,-2061.650942,0.00018597,2]
[329231341,1718191864557,-161.481521,0.00018597,2]
[329231342,1718191864568,-99359.61419,0.00018598,2]
[329231344,1718191864579,-151.0,0.00018598,2]
[329231346,1718191864589,-151.0,0.00018598,2]
[329231348,1718191864606,-168.9577,0.00018598,2]
[329231350,1718191864617,-151.0,0.00018598,2]
[329231352,1718191864630,-151.0,0.00018598,2]
[329231354,1718191864642,-151.0,0.00018598,2]
[329231357,1718191864654,-151.0,0.00018598,2]
[329231358,1718191864665,-151.0,0.00018598,2]
[329231360,1718191864676,-500.0,0.00018598,2]
[329231362,1718191864687,-500.0,0.00018598,2]
[329231364,1718191864698,-303.523338,0.00018598,2]
[329231366,1718191864709,-151.0,0.00018598,2]
[329231368,1718191864720,-303.523338,0.00018598,2]
[329231370,1718191864730,-161.117024,0.00018598,2]
[329231372,1718191864741,-161.117024,0.00018598,2]
[329231374,1718191864752,-2116.775547,0.00018598,2]
[329231377,1718191864765,-2116.775547,0.00018598,2]
[329231379,1718191864781,-151.0,0.00018598,2]
[329231381,1718191864796,-1701.47971,0.00018598,2]
[329231383,1718191864807,-1701.47971,0.00018598,2]
[329231385,1718191864817,-547.24091,0.00018598,2]
[329231387,1718191864830,-547.24091,0.00018598,2]
[329231389,1718191864843,-319.4026,0.00018598,2]
[329231391,1718191864859,-173.945432,0.00018598,2]
[329231393,1718191864873,-319.4026,0.00018598,2]
[329231396,1718191864885,-173.945432,0.00018598,2]
[329231398,1718191864896,-4973.356387,0.00018598,2]
[329231400,1718191864907,-4973.356387,0.00018598,2]
[329231402,1718191864919,-1137.663072,0.00018598,2]
[329231404,1718191864931,-1137.663072,0.00018598,2]
[329231406,1718191864944,-3189.287515,0.00018598,2]
[329231408,1718191864955,-3189.287515,0.00018598,2]
[329231410,1718191864966,-151.0,0.00018598,2]
[329231412,1718191864979,-151.0,0.00018598,2]
[329231414,1718191864991,-256.94135,0.00018598,2]
[329231416,1718191865004,-256.94135,0.00018598,2]
[329231418,1718191865015,-619.685294,0.00018598,2]
[329231420,1718191865029,-619.685294,0.00018598,2]
[329231421,1718191865045,-364.500917,0.00018598,2]
[329231423,1718191865060,-364.500917,0.00018598,2]
[329231425,1718191865073,-151.0,0.00018598,2]
[329231427,1718191865091,-235.546089,0.00018598,2]
[329231429,1718191865104,-235.546089,0.00018598,2]
[329231431,1718191865116,-151.0,0.00018598,2]
[329231434,1718191865128,-205.911629,0.00018598,2]
[329231436,1718191865139,-2061.650942,0.00018598,2]
[329231438,1718191865152,-205.911629,0.00018598,2]
[329231440,1718191865171,-2061.650942,0.00018598,2]
[329231442,1718191865182,-42872.59490333,0.000186,2]
[329231456,1718191865366,-500.0,0.00018082,2]
[329231457,1718191865393,-2323.605149,0.000186,2]
[329232731,1718192491346,5406.10257369,0.00017898,13]
[329232732,1718192550489,2703.05128684,0.00017808,13]
[329232733,1718192609310,1351.52564342,0.00017805,13]
[329232734,1718192670584,675.76282171,0.00017534,13]
[329232735,1718192684620,-3684.2049788,0.00014549,2]
[329232737,1718192721871,-250.0,0.00014641,2]
[329232738,1718192729926,-419.21318354,0.00015086,2]
[329232739,1718192729966,-155.02015262,0.00015086,2]
[329232740,1718192730177,-300.0,0.00015087,2]
[329232741,1718192730222,-300.0,0.00015087,2]
[329232742,1718192730269,-24900.0,0.00015088,2]
[329232743,1718192731190,337.88141086,0.00017534,13]
[329232793,1718192791446,168.94070543,0.00017534,13]
[329232795,1718192809724,-183.048713,0.0001522,2]
[329232796,1718192817751,-300.0,0.00015899,2]
[329232797,1718192817818,-300.0,0.00015899,2]
[329232798,1718192817859,-7921.82449081,0.00015899,2]
[329232799,1718192817902,-2000.0,0.000159,2]
[329232800,1718192817944,-683.83770888,0.000159,2]
[329232801,1718192851667,168.94070542,0.00017534,13]
[329232802,1718192928406,-6806.8652065,0.00015019,2]
[329232848,1718193033219,-192.081066,0.00015019,2]
[329232849,1718193033229,-155.01860223,0.00015019,2]
[329232850,1718193033240,-1413.72458712,0.000159,2]
[329232851,1718193033251,-300.0,0.00015997,2]
[329232852,1718193033261,-300.0,0.00015997,2]
[329232853,1718193033272,-489.86295763,0.00015998,2]
[329232854,1718193033282,-9092.41046966,0.00015998,2]
[329232855,1718193033292,-9975.36124938,0.00015998,2]
[329232856,1718193033302,-3530.23426417,0.00015998,2]
[329232857,1718193033313,-2475.34668873,0.00015998,2]
[329232858,1718193033323,-7694.94718932,0.00015999,2]
[329232859,1718193033333,-33773.1073048,0.00016,2]
[329232871,1718193039088,-5862.58452237,0.00016,2]
[329232872,1718193039121,-188658.49109817,0.00016,2]
[329232873,1718193039134,-1999.99999901,0.00016,2]
[329232874,1718193039149,-683.83770884,0.00016078,2]
[329232875,1718193039161,-683.83770884,0.00016256,2]
[329232876,1718193039172,-850.80134715,0.00016327,7]
[329232877,1718193039183,-552.89399516,0.00016327,2]
[329232878,1718193039194,-683.83770884,0.00016434,2]
[329232879,1718193039205,-500.0,0.00016438,2]
[329232880,1718193039216,-500.0,0.00016438,2]
[329232881,1718193039227,-252.61994634,0.00016438,2]
[329232882,1718193039238,-500.0,0.00016438,2]
[329232883,1718193039250,-523.32061124,0.00016438,2]
[329232884,1718193039261,-500.0,0.00016438,2]
[329232885,1718193039273,-500.0,0.00016438,2]
[329232886,1718193039284,-500.44562382,0.00016438,2]
[329232887,1718193039296,-500.0,0.00016438,2]
[329232888,1718193039307,-500.0,0.00016438,2]
[329232889,1718193039318,-500.0,0.00016438,2]
[329232890,1718193039329,-555.22222528,0.00016438,2]
[329232891,1718193039340,-500.0,0.00016438,2]
[329232892,1718193039351,-500.0,0.00016438,2]
[329232893,1718193039362,-364.57345289,0.00016438,2]
[329232894,1718193039374,-500.0078982,0.00016438,2]
[329232895,1718193039385,-501.01218241,0.00016438,2]
[329232896,1718193039403,-500.0,0.00016438,2]
[329232897,1718193039414,-502.49510937,0.00016438,2]
[329232899,1718193039426,-500.0,0.00016438,2]
[329232901,1718193039440,-500.0,0.00016438,2]
[329232903,1718193039453,-502.42493305,0.00016438,2]
[329232904,1718193039464,-500.0,0.00016438,2]
[329232905,1718193039475,-500.0,0.00016438,2]
[329232906,1718193039486,-500.0,0.00016438,2]
[329232907,1718193039497,-500.0,0.00016438,2]
[329232908,1718193039508,-500.0,0.00016438,2]
[329232909,1718193039520,-500.0,0.00016438,2]
[329232910,1718193039535,-500.0,0.00016438,2]
[329232911,1718193039546,-500.0,0.00016438,2]
[329232912,1718193039557,-500.0,0.00016438,2]
[329232913,1718193039570,-500.0,0.00016438,2]
[329232914,1718193039581,-500.0,0.00016438,2]
[329232915,1718193039592,-500.0,0.00016438,2]
[329232916,1718193039605,-500.0,0.00016438,2]
[329232917,1718193039616,-500.0,0.00016438,2]
[329232918,1718193039627,-544.21504994,0.00016438,2]
[329232919,1718193039640,-500.0,0.00016438,2]
[329232920,1718193039651,-500.0,0.00016438,2]
[329232921,1718193039662,-500.0,0.00016438,2]
[329232922,1718193039676,-500.85924365,0.00016438,2]
[329232923,1718193039688,-500.0,0.00016438,2]
[329232924,1718193039703,-500.0,0.00016438,2]
[329232925,1718193039716,-502.2197902,0.00016438,2]
[329232926,1718193039732,-500.0,0.00016438,2]
[329232927,1718193039748,-500.0,0.00016438,2]
[329232928,1718193039760,-500.0,0.00016438,2]
[329232929,1718193039772,-500.0,0.00016438,2]
[329232930,1718193039783,-500.0,0.00016438,2]
[329232931,1718193039794,-500.0,0.00016438,2]
[329232932,1718193039806,-500.0,0.00016438,2]
[329232933,1718193039818,-500.0,0.00016438,2]
[329232934,1718193039863,-500.0,0.00016438,2]
[329232935,1718193039875,-627.44525498,0.00016438,2]
[329232936,1718193039890,-500.0,0.00016438,2]
[329232937,1718193039901,-500.0,0.00016438,2]
[329232938,1718193039913,-500.0,0.00016438,2]
[329232939,1718193039924,-500.0,0.00016438,2]
[329232940,1718193039936,-500.0,0.00016438,2]
[329232941,1718193039948,-500.0,0.00016438,2]
[329232942,1718193039960,-500.0,0.00016438,2]
[329232943,1718193039973,-529.76836759,0.00016438,2]
[329232944,1718193039986,-500.0,0.00016438,2]
[329232945,1718193039998,-500.96478748,0.00016438,2]
[329232946,1718193040011,-500.0,0.00016438,2]
[329232947,1718193040026,-500.0,0.00016438,2]
[329232948,1718193040038,-500.0,0.00016438,2]
[329232949,1718193040055,-590.63372394,0.00016438,2]
[329232950,1718193040070,-346.06935248,0.00016438,2]
[329232951,1718193040081,-500.0,0.00016438,2]
[329232952,1718193040103,-500.0,0.00016438,2]
[329232953,1718193040118,-500.0,0.00016438,2]
[329232954,1718193040138,-425.87217413,0.00016438,2]
[329232955,1718193040158,-500.0,0.00016438,2]
[329232956,1718193040171,-500.0,0.00016438,2]
[329232957,1718193040191,-500.0,0.00016438,2]
[329232958,1718193040205,-318.55246722,0.00016438,2]
[329232959,1718193040216,-236.5197406,0.00016438,2]
[329232960,1718193040228,-500.0,0.00016438,2]
[329232961,1718193040247,-500.0,0.00016438,2]
[329232962,1718193040269,-500.0,0.00016438,2]
[329232963,1718193040288,-500.0,0.00016438,2]
[329232964,1718193040301,-500.0,0.00016438,2]
[329232965,1718193040316,-500.0,0.00016438,2]
[329232966,1718193040335,-500.0,0.00016438,2]
[329232967,1718193040350,-500.0,0.00016438,2]
[329232968,1718193040366,-500.0,0.00016438,2]
[329232969,1718193040378,-257.67064628,0.00016438,2]
[329232970,1718193040394,-500.87909105,0.00016438,2]
[329232971,1718193040405,-208.50340544,0.00016438,2]
[329232972,1718193040565,-500.0,0.00016438,2]
[329232973,1718193040576,-500.0,0.00016438,2]
[329232974,1718193040587,-505.40509332,0.00016438,2]
[329232975,1718193040598,-502.96666305,0.00016438,2]
[329232976,1718193040612,-500.0,0.00016438,2]
[329232977,1718193040624,-500.0,0.00016438,2]
[329232978,1718193040638,-500.0,0.00016438,2]
[329232979,1718193040650,-500.0,0.00016438,2]
[329232980,1718193040662,-500.0,0.00016438,2]
[329232981,1718193040674,-500.0,0.00016438,2]